bitfinex-derivatives/quotes_ETHF0:USTF0_20250411
["timestamp","ask_amount","ask_price","bid_price","bid_amount"]
[1744393235715,1.26211,1585.4,1585.3,4.05305295]
[1744393235911,1.26211,1585.4,1585.3,0.84525295]
[1744393236315,1.26207,1585.5,1585.3,4.05305295]
[1744393236519,1.26203,1585.5,1585.4,1.9237]
[1744393236810,1.26203,1585.5,1585.4,3.36e-06]
[1744393237211,1.26211,1585.4,1585.3,0.00943959]
[1744393237514,0.00943959,1585.6,1585.3,5.00943959]
[1744393237714,0.00943959,1585.6,1585.4,1.9237]
[1744393238023,0.00943959,1585.6,1585.5,3.2078]
[1744393238320,3.15509,1585.5,1584.9,3.2078]
[1744393238613,1.26229,1585.2,1585.0,1.26241]
[1744393238809,4.99055082,1585.5,1584.7,3.15664]
[1744393239010,8.14570082,1585.5,1584.9,1.26249]
[1744393239210,3.2078,1585.7,1585.6,1.26195]
[1744393239409,6.36175,1586.1,1585.5,1.26197]
[1744393239620,1.27128959,1585.8,1585.6,1.26194]
[1744393239807,1.26188,1585.7,1585.6,0.00943959]
[1744393240004,0.00943959,1585.8,1585.6,0.00943959]
[1744393240615,0.00943959,1585.8,1585.6,5.00943959]
[1744393241021,1.27125959,1585.8,1585.6,1.27136959]
[1744393241317,1.26187,1585.7,1585.6,0.00943959]
[1744393241618,4.46967,1585.7,1585.6,0.00943959]
[1744393241815,6.25242082,1585.7,1585.6,0.00943959]
[1744393242522,0.00943959,1585.8,1585.6,0.00943959]
[1744393242722,0.00943959,1585.8,1585.7,1.26187]
[1744393242916,6.26178041,1585.8,1585.7,2.0835]
[1744393243813,6.26178041,1585.8,1585.7,8.34537]
[1744393243814,0.00943959,1585.8,1585.7,8.34537]
[1744393244114,0.00943959,1585.8,1585.7,2.0835]
[1744393244318,0.00943959,1585.8,1585.7,3.34537]
[1744393244523,0.00943959,1585.8,1585.7,8.34537]
[1744393244724,3.15271,1586.7,1585.8,3.15449]
[1744393244725,6.36053,1586.7,1585.8,3.15449]
[1744393244917,3.2078,1586.0,1585.7,5.2913]
[1744393245119,3.2078,1586.6,1585.7,5.2913]
[1744393245419,1.26124,1586.5,1586.3,1.26134]
[1744393245616,9.45956082,1586.6,1586.4,1.2613]
[1744393245820,1.26124,1586.5,1586.3,1.26137]
[1744393246021,1.26124,1586.5,1586.1,1.2615]
[1744393246022,1.26142,1586.3,1586.1,1.2615]
[1744393246214,1.26138,1586.4,1586.2,1.26145]
[1744393246517,4.99055082,1586.5,1585.7,3.15458]
[1744393246719,3.2078,1586.2,1585.7,1.26182]
[1744393247018,1.26187,1585.7,1585.6,0.00943959]
[1744393247322,3.2078,1585.9,1585.6,0.00943959]
[1744393247519,6.98185082,1585.9,1585.7,1.26185]
[1744393247724,4.99055082,1585.9,1585.6,0.00943959]
[1744393248023,3.2078,1586.1,1585.6,0.00943959]
[1744393248226,3.2078,1585.9,1585.8,1.26176]
[1744393248418,8.19835082,1586.1,1585.6,0.00943959]
[1744393248617,1.2617,1586.0,1585.6,0.00943959]
[1744393248819,4.99055082,1586.1,1586.0,1.26163]
[1744393249020,4.99055082,1586.1,1585.6,0.00943959]
[1744393249231,1.26174,1585.9,1585.7,4.07901559]
[1744393249527,1.26179,1585.9,1585.8,0.78829559]
[1744393249726,6.25234082,1585.9,1585.8,0.78829559]
[1744393250125,6.25226082,1585.9,1585.8,0.78829559]
[1744393250318,4.843,1586.3,1585.8,2.05008559]
[1744393250520,1.26163,1586.0,1585.9,2.81719559]
[1744393250825,1.26163,1586.0,1585.9,0.78829559]
[1744393251021,13.32598082,1586.0,1585.9,0.78829559]
[1744393251418,1.26187,1585.7,1585.6,0.00943959]
[1744393251623,3.2078,1586.0,1585.6,0.00943959]
[1744393251819,1.26171,1585.9,1585.7,0.79014584]
[1744393252024,1.26169,1586.0,1585.7,2.72934584]
[1744393252219,1.26167,1586.0,1585.8,1.26179]
[1744393252425,1.6352,1586.3,1585.9,1.9392]
[1744393252618,1.26155,1586.2,1586.0,0.78994263]
[1744393252820,1.26155,1586.1,1586.0,2.72914263]
[1744393253521,1.26155,1586.1,1586.0,0.78994263]
[1744393253727,6.26155,1586.1,1586.0,0.78994263]
[1744393254223,1.26155,1586.1,1586.0,0.78994263]
[1744393254424,6.26155,1586.1,1586.0,0.78994263]
[1744393254820,1.26187,1585.7,1585.6,0.00943959]
[1744393255019,4.46967,1585.7,1585.6,0.00943959]
[1744393255222,1.26187,1585.7,1585.6,0.00943959]
[1744393255528,2.17095,1585.8,1585.6,0.00943959]
[1744393255732,3.15429,1585.9,1585.6,2.07483959]
[1744393256027,1.26184,1585.8,1585.6,2.07483959]
[1744393256224,1.26181,1585.8,1585.6,2.07483959]
[1744393256526,1.26187,1585.7,1585.6,2.07483959]
[1744393257029,1.26173,1585.9,1585.7,1.26183]
[1744393257227,1.26187,1585.7,1585.6,2.07483959]
[1744393257629,4.46967,1585.7,1585.6,0.00943959]
[1744393257933,1.26182,1585.8,1585.6,0.00943959]
[1744393258133,1.26187,1585.7,1585.6,0.00943959]
[1744393258330,1.26183,1585.8,1585.6,0.00943959]
[1744393258529,1.26178,1585.9,1585.6,1.27135959]
[1744393258726,1.26178,1585.9,1585.7,1.9839]
[1744393258727,1.26179,1585.8,1585.7,1.9839]
[1744393259425,1.26187,1585.7,1585.6,0.00943959]
[1744393259626,4.46967,1585.7,1585.6,0.00943959]
[1744393259834,2.66802427,1585.7,1585.6,0.00943959]
[1744393260027,3.92989427,1585.7,1585.6,0.00943959]
[1744393260729,1.26211,1585.4,1585.3,9.16516886]
[1744393261331,1.26235,1585.1,1585.0,17.26616314]
[1744393261534,1.26235,1585.1,1584.9,24.72705517]
[1744393261535,1.26243,1585.0,1584.9,19.25606384]
[1744393261730,1.26243,1585.0,1584.9,16.38219343]
[1744393262532,4.1173,1585.1,1584.9,16.38219343]
[1744393262840,3.2078,1585.1,1584.9,18.48669343]
[1744393263338,1.27172959,1585.2,1585.0,3.2078]
[1744393263636,1.26243,1585.0,1584.9,14.82911343]
[1744393263842,0.00943959,1585.2,1584.9,14.82911343]
[1744393264043,0.00943959,1585.2,1585.1,1.26235]
[1744393264237,0.00943959,1585.2,1585.0,6.47449]
[1744393264532,0.00943959,1585.2,1585.1,1.26235]
[1744393264738,0.00943959,1585.2,1585.1,6.26235]
[1744393264938,0.9076,1585.9,1585.1,5.0]
[1744393265143,3.15333,1586.4,1585.7,1.26184]
[1744393265444,0.9076,1586.4,1585.8,1.26177]
[1744393265635,4.91305301,1586.2,1585.7,3.2078]
[1744393265829,3.2078,1586.0,1585.1,87.453]
[1744393266136,1.26203,1585.5,1585.4,0.00943959]
[1744393266538,4.46983,1585.5,1585.4,0.00943959]
[1744393267041,1.26203,1585.5,1585.4,0.77828288]
[1744393267441,6.26203,1585.5,1585.4,2.88e-06]
[1744393267741,0.92334951,1585.7,1585.0,3.2078]
[1744393268040,0.92334951,1585.7,1585.0,1.26236]
[1744393268243,0.00934951,1585.7,1585.4,4.46983]
[1744393268539,0.00934951,1585.7,1585.6,3.2078]
[1744393268540,1.27121951,1585.7,1585.6,3.2078]
[1744393268744,1.27126951,1585.7,1585.5,1.9649]
[1744393269040,0.00934951,1585.7,1585.5,1.9649]
[1744393269244,0.00934951,1585.7,1585.5,6.9649]
[1744393269445,0.00934951,1585.7,1585.6,3.2078]
[1744393269648,1.27121951,1585.7,1585.6,3.2078]
[1744393269846,1.26195,1585.6,1585.5,1.9649]
[1744393270244,0.00934951,1585.7,1585.5,6.9649]
[1744393270444,0.00934951,1585.7,1585.5,8.22689]
[1744393270646,1.27121951,1585.7,1585.5,1.9649]
[1744393270847,0.00934951,1585.7,1585.5,1.9649]
[1744393271147,0.00934951,1585.7,1585.6,4.46975]
[1744393271543,1.27121951,1585.7,1585.6,3.2078]
[1744393271745,0.00934951,1585.7,1585.5,1.9649]
[1744393271947,1.27121951,1585.7,1585.5,3.2269]
[1744393272147,1.27124951,1585.7,1585.5,3.22689]
[1744393272350,0.00934951,1585.7,1585.6,4.46975]
[1744393272647,4.91305301,1586.4,1585.6,4.46975]
[1744393272844,4.91305301,1586.4,1586.1,3.2078]
[1744393273146,4.91305301,1586.4,1586.3,1.2614]
[1744393273535,1.26122,1586.6,1586.4,1.26132]
[1744393273536,0.00943958,1586.5,1586.4,1.26132]
[1744393273748,0.00943958,1586.5,1585.9,6.36206]
[1744393273944,1.27070958,1586.5,1586.3,1.27079959]
[1744393274144,1.26132,1586.4,1586.3,0.00943959]
[1744393274544,6.26132,1586.4,1586.3,0.00943959]
[1744393274737,10.38182,1586.4,1586.3,9.59e-06]
[1744393275144,12.08912,1586.4,1586.3,9.59e-06]
[1744393275443,1.26211,1585.4,1585.3,3.2078]
[1744393275644,1.262,1585.6,1585.1,5.2444]
[1744393275849,3.15469,1585.7,1585.2,2.0366]
[1744393276045,1.26213,1585.4,1585.2,2.0366]
[1744393276241,3.2078,1585.8,1585.2,2.0366]
[1744393276444,3.15449,1585.8,1585.2,3.29886]
[1744393276641,0.00943959,1585.7,1585.3,3.21723959]
[1744393276844,0.00943959,1585.7,1585.4,2.0366]
[1744393277145,1.26203,1585.5,1585.4,2.0366]
[1744393277339,1.26198,1585.6,1585.4,2.0366]
[1744393277535,1.26196,1585.6,1585.4,3.29869]
[1744393277736,0.00943959,1585.7,1585.4,2.0366]
[1744393277949,3.21723959,1585.7,1585.4,2.0366]
[1744393278145,1.26203,1585.5,1585.4,2.0366]
[1744393278353,0.00943959,1585.7,1585.6,1.26195]
[1744393278647,3.15513,1585.5,1584.4,3.2078]
[1744393278847,1.26243,1585.1,1584.8,1.9441]
[1744393279147,3.2078,1585.1,1584.8,1.9441]
[1744393279350,3.2078,1585.3,1584.8,6.9441]
[1744393279546,3.2078,1585.3,1584.9,1.95353959]
[1744393279944,1.26219,1585.3,1584.9,3.21601959]
[1744393280147,3.2078,1585.2,1584.9,1.95353959]
[1744393280548,3.2078,1585.0,1584.9,1.95353959]
[1744393280752,4.47023,1585.0,1584.9,1.95353959]
[1744393281249,9.47023,1585.0,1584.9,0.00943959]
[1744393281449,9.47023,1585.0,1584.9,9.59e-06]
[1744393282049,10.36693,1585.0,1584.9,9.59e-06]
[1744393283144,10.36693,1585.0,1584.4,0.75729744]
[1744393283145,1.26283,1584.5,1584.4,0.75729744]
[1744393283346,4.47063,1584.5,1584.4,0.75729744]
[1744393283649,9.47063,1584.5,1584.4,0.75729744]
[1744393283852,4.47063,1584.5,1584.4,0.75729744]
[1744393284051,9.47063,1584.5,1584.4,7.44e-06]
[1744393284351,9.47063,1584.5,1583.7,29.6724662]
[1744393284352,1.26339,1583.8,1583.7,29.6724662]
[1744393284554,0.01674781,1583.8,1583.7,29.6724662]
[1744393284758,1.28013781,1583.8,1583.7,29.6724662]
[1744393286157,1.26347,1583.7,1583.6,1.19e-06]
[1744393286344,1.26387,1583.2,1583.1,24.14583736]
[1744393286552,1.28061781,1583.2,1583.1,24.14583736]
[1744393286750,4.48841781,1583.2,1583.1,24.14583736]
[1744393286953,3.22454781,1583.2,1583.1,24.14583736]
[1744393287147,4.48841781,1583.2,1583.1,24.14583736]
[1744393287858,9.48841781,1583.2,1583.1,24.14583736]
[1744393288149,4.48841781,1583.2,1583.1,24.14583736]
[1744393288348,3.22454781,1583.2,1583.1,30.40978736]
[1744393288952,0.00947119,1583.3,1583.2,1.26387]
[1744393289159,3.2078,1584.0,1583.3,3.15946]
[1744393289454,3.2078,1584.0,1583.3,3.15947]
[1744393289759,1.26359,1583.6,1583.2,3.2078]
[1744393289946,3.2078,1583.8,1583.1,3.15987]
[1744393290148,1.26348,1583.7,1583.3,3.15947]
[1744393290456,0.00947119,1583.6,1583.5,1.26356]
[1744393290661,1.27302119,1583.6,1583.5,1.26356]
[1744393290847,1.26363,1583.5,1583.4,1.26366]
[1744393291353,3.21727119,1583.6,1583.3,1.26374]
[1744393291547,1.27308119,1583.6,1583.2,3.15967]
[1744393291861,0.00947119,1583.6,1583.0,6.37733119]
[1744393292149,0.00947119,1583.6,1583.2,3.15967]
[1744393292355,0.00947119,1583.6,1583.5,1.26363]
[1744393292557,1.27302119,1583.6,1583.5,1.26363]
[1744393292758,1.26371,1583.4,1583.3,1.9237]
[1744393293050,0.00947119,1583.6,1583.3,3.18749]
[1744393293255,1.26371,1583.4,1583.3,1.26379]
[1744393293552,1.26371,1583.4,1583.2,1.26381]
[1744393293756,1.26382,1583.3,1583.2,1.26383]
[1744393293959,0.00947119,1583.6,1583.1,6.36762]
[1744393294157,1.26368,1583.5,1583.3,1.26376]
[1744393294355,1.27305119,1583.6,1583.2,3.15964]
[1744393294655,0.00947119,1583.6,1583.4,1.26366]
[1744393295051,0.00947119,1583.6,1583.2,3.15967]
[1744393295361,1.26372,1583.4,1583.3,1.26373]
[1744393295661,1.26383,1583.3,1583.2,1.26384]
[1744393295954,1.26364,1583.5,1583.4,1.26369]
[1744393296158,0.00947119,1583.6,1583.0,0.00947119]
[1744393296159,3.21727119,1583.6,1583.0,0.00947119]
[1744393296361,0.00947119,1583.6,1583.3,1.26373]
[1744393296658,1.26366,1583.5,1583.1,3.15987]
[1744393296850,1.26364,1583.5,1583.1,3.15987]
[1744393297052,1.26364,1583.5,1583.4,1.26371]
[1744393297354,1.26373,1583.4,1583.3,1.26375]
[1744393297546,2.04007119,1583.6,1583.4,1.26368]
[1744393297854,2.04007119,1583.6,1583.0,6.37733119]
[1744393298059,1.26385,1583.3,1583.2,1.26385]
[1744393298658,1.26395,1583.1,1583.0,1.27346119]
[1744393298850,3.29453,1583.2,1583.1,1.26395]
[1744393299054,3.16836119,1583.6,1583.2,1.2638]
[1744393299251,1.26379,1583.3,1583.2,1.2638]
[1744393299453,1.26379,1583.3,1583.1,1.2639]
[1744393299454,1.2639,1583.2,1583.1,1.2639]
[1744393299658,1.26393,1583.2,1583.1,1.26393]
[1744393299858,1.26395,1583.1,1583.0,0.00947119]
[1744393300058,4.48849781,1583.1,1583.0,0.00947119]
[1744393300254,0.01674781,1583.1,1583.0,9.48130119]
[1744393300558,4.47148,1583.5,1583.4,1.26366]
[1744393300758,3.2078,1583.5,1583.4,1.28045781]
[1744393300959,4.48084119,1583.6,1583.5,1.26363]
[1744393301263,1.26363,1583.5,1583.4,0.01674781]
[1744393301462,2.0663,1583.5,1583.3,1.26376]
[1744393301660,3.2078,1583.4,1583.0,3.16952119]
[1744393301962,3.2078,1583.4,1583.3,1.26379]
[1744393301963,4.47152,1583.4,1583.3,1.26379]
[1744393302160,3.2078,1583.4,1583.3,1.26379]
[1744393302767,3.2078,1583.4,1583.2,1.26385]
[1744393302961,1.26382,1583.3,1583.2,1.26385]
[1744393303160,2.0978,1583.3,1583.0,1.27346119]
[1744393303363,3.2078,1583.1,1583.0,1.27350119]
[1744393303658,0.01674781,1583.1,1583.0,1.27350119]
[1744393304368,3.2078,1583.4,1583.3,1.26379]
[1744393304563,3.2078,1583.4,1583.3,1.28053781]
[1744393305970,0.00947119,1583.6,1583.5,1.26363]
[1744393306166,3.2078,1584.0,1583.9,1.26331]
[1744393306371,1.26341,1583.8,1583.7,1.26341]
[1744393306664,3.2078,1583.8,1583.7,0.01674781]
[1744393306871,3.2078,1583.8,1583.7,1.28021781]
[1744393307073,4.47119,1583.8,1583.7,1.28021781]
[1744393307366,4.47119,1583.8,1583.7,0.01674781]
[1744393307571,9.47119,1583.8,1583.7,0.01674781]
[1744393307763,11.43309,1583.8,1583.7,0.01674781]
[1744393307968,6.43309,1583.8,1583.7,0.01674781]
[1744393308273,4.47119,1583.8,1583.7,0.01674781]
[1744393308572,3.2078,1583.8,1583.7,1.28021781]
[1744393308772,1.27284119,1583.9,1583.7,0.01674781]
[1744393309070,4.47119,1583.8,1583.7,0.01674781]
[1744393309367,4.47119,1583.8,1583.7,2.42894781]
[1744393309565,1.26339,1583.8,1583.7,2.42894781]
[1744393309768,4.47119,1583.8,1583.7,2.42894781]
[1744393309966,4.47119,1583.8,1583.7,0.01674781]
[1744393310267,6.86149,1583.8,1583.7,0.01674781]
[1744393310673,4.47119,1583.8,1583.7,0.01674781]
[1744393310972,4.47119,1583.8,1583.7,2.42894781]
[1744393311372,4.47119,1583.8,1583.7,0.01674781]
[1744393311572,11.92249,1583.8,1583.7,0.01674781]
[1744393311775,0.00947119,1583.9,1583.7,5.01674781]
[1744393311974,0.00947119,1583.9,1583.8,1.26339]
[1744393312179,0.00947119,1583.9,1583.8,3.58369]
[1744393312478,0.00947119,1583.9,1583.8,8.60043781]
[1744393312668,1.27278119,1583.9,1583.8,2.33704781]
[1744393312971,1.26365,1583.5,1583.4,1.26364]
[1744393313173,1.26365,1583.5,1583.4,2.3203]
[1744393313376,1.26387,1583.2,1583.1,3.58425]
[1744393313566,0.01674781,1583.2,1583.1,3.58425]
[1744393314178,1.28061781,1583.2,1583.1,2.3203]
[1744393314676,0.01674781,1583.2,1583.1,3.58425]
[1744393314882,1.28061781,1583.2,1583.1,2.3203]
[1744393316381,1.28061781,1583.2,1583.1,3.58425]
[1744393316681,0.01674781,1583.2,1583.1,3.58425]
[1744393317074,0.01674781,1583.2,1583.1,8.58425]
[1744393317474,7.81e-06,1583.2,1583.1,8.58425]
[1744393317879,1.26351,1583.7,1583.6,1.26355]
[1744393318382,1.26356,1583.6,1583.5,1.26356]
[1744393318577,1.26363,1583.5,1583.4,2.3495]
[1744393318980,1.26379,1583.3,1583.2,3.2078]
[1744393319186,3.70783,1583.4,1583.0,3.16938119]
[1744393319384,2.4441,1583.4,1583.2,1.26387]
[1744393319680,1.26395,1583.1,1583.0,2.35897119]
[1744393320188,1.26395,1583.1,1583.0,1.27350119]
[1744393320373,1.26395,1583.1,1583.0,0.00947119]
[1744393321082,6.26395,1583.1,1583.0,1.19e-06]
[1744393321382,3.16047,1582.8,1582.4,3.2078]
[1744393321583,3.16011,1583.0,1582.4,3.2078]
[1744393321884,1.26434,1582.6,1582.5,2.4856]
[1744393322088,1.26428,1582.7,1582.5,2.4856]
[1744393322384,1.26434,1582.6,1582.5,3.74997]
[1744393322779,1.26442,1582.5,1582.4,0.00947119]
[1744393322983,6.84002,1582.5,1582.4,0.00947119]
[1744393323182,1.26482,1582.0,1581.9,2.4856]
[1744393323483,3.2078,1582.3,1581.9,2.4856]
[1744393323687,1.26482,1582.0,1581.9,2.4856]
[1744393323986,1.26487,1582.0,1581.8,1.26498]
[1744393324189,1.26493,1581.9,1581.7,3.79113]
[1744393324392,3.16187,1582.1,1581.7,3.80060119]
[1744393324687,1.26498,1581.8,1581.7,0.00947119]
[1744393325080,2.4156,1582.0,1581.7,1.27450119]
[1744393325282,1.26498,1581.8,1581.7,2.53557119]
[1744393325483,1.26498,1581.8,1581.7,0.00947119]
[1744393326386,8.68058,1581.8,1581.7,0.00947119]
[1744393326887,8.68058,1581.8,1581.7,1.19e-06]
[1744393327088,22.10918,1581.8,1581.7,1.19e-06]
[1744393327275,1.26506,1581.7,1581.6,12.70796699]
[1744393327480,1.26514,1581.6,1581.5,17.59717708]
[1744393327887,8.71404,1581.6,1581.5,17.59717708]
[1744393328285,1.26522,1581.5,1581.1,2.3059]
[1744393328488,1.26522,1581.5,1581.4,0.00633524]
[1744393328787,2.4489,1581.6,1581.4,0.00633524]
[1744393328987,3.71409,1581.6,1581.4,0.00633524]
[1744393329188,2.4489,1581.6,1581.4,0.00633524]
[1744393329485,1.26522,1581.5,1581.4,0.00633524]
[1744393330291,3.65722,1581.5,1581.4,0.00633524]
[1744393330585,11.86502,1581.5,1581.4,0.00633524]
[1744393330989,6.86502,1581.5,1581.4,0.00633524]
[1744393332991,11.86502,1581.5,1581.4,5.24e-06]
[1744393337991,6.86502,1581.5,1581.4,5.24e-06]
[1744393338292,3.65722,1581.5,1581.4,5.24e-06]
[1744393338785,6.86502,1581.5,1581.4,5.24e-06]
[1744393338988,3.65722,1581.5,1581.4,5.24e-06]
[1744393339696,6.86502,1581.5,1581.4,5.24e-06]
[1744393340292,3.2078,1581.5,1581.4,5.24e-06]
[1744393340497,2.7336,1581.8,1581.4,5.00000524]
[1744393340699,1.26517,1581.6,1581.5,2.76]
[1744393340897,2.7336,1581.8,1581.5,2.76]
[1744393341086,1.26508,1581.7,1581.5,2.76]
[1744393341291,2.7336,1581.8,1581.5,2.76]
[1744393342001,1.27425119,1582.1,1581.6,3.16287]
[1744393342192,0.00947119,1582.1,1581.7,6.1097]
[1744393342392,0.00947119,1582.1,1582.0,1.26482]
[1744393342889,0.00947119,1582.1,1582.0,6.26482]
[1744393343089,0.00947119,1582.1,1582.0,9.16672]
[1744393345405,3.2078,1582.6,1582.0,7.9019]
[1744393345601,1.26449,1582.5,1582.1,3.2078]
[1744393345791,1.26432,1582.7,1582.5,1.26441]
[1744393345993,4.91305301,1582.8,1582.7,1.26426]
[1744393346390,4.91305301,1582.8,1582.7,6.26426]
[1744393346699,1.26377,1583.4,1583.1,1.2639]
[1744393346899,1.26365,1583.5,1583.2,0.01674]
[1744393347203,4.4714,1583.6,1583.3,0.01674]
[1744393347395,4.4714,1583.6,1583.4,1.26371]
[1744393347702,4.4714,1583.6,1583.5,0.01674]
[1744393348293,3.2078,1583.6,1583.5,0.01674]
[1744393348597,1.26355,1583.6,1583.5,0.01674]
[1744393348795,0.00947119,1583.7,1583.5,0.01674]
[1744393349198,0.00947119,1583.7,1583.6,1.28029]
[1744393349506,0.00947119,1583.7,1583.6,0.01674]
[1744393349695,1.27294119,1583.7,1583.6,2.86724]
[1744393350204,4.48074119,1583.7,1583.6,0.01674]
[1744393352703,9.48074119,1583.7,1583.6,0.01674]
[1744393353603,4.48074119,1583.7,1583.6,0.01674]
[1744393354605,1.27294119,1583.7,1583.6,0.01674]
[1744393354797,0.00947119,1583.7,1583.6,6.28029]
[1744393355098,0.00947119,1583.7,1583.6,5.01674]
[1744393355303,0.00947119,1583.7,1583.6,6.28029]
[1744393355806,0.00947119,1583.7,1583.6,8.22454]
[1744393356003,1.27294119,1583.7,1583.6,5.01674]
[1744393356704,1.27294119,1583.7,1583.6,0.01674]
[1744393357097,1.27294119,1583.7,1583.6,5.01674]
[1744393357297,1.27294119,1583.7,1583.6,0.01674]
[1744393358903,4.48074119,1583.7,1583.6,0.01674]
[1744393359107,1.27294119,1583.7,1583.6,0.01674]
[1744393360100,0.00947119,1583.7,1583.6,6.28029]
[1744393360298,1.26334,1583.9,1583.8,1.26337]
[1744393360500,1.26334,1583.9,1583.8,1.28011]
[1744393360802,1.26334,1583.9,1583.8,0.01674]
[1744393361397,4.47114,1583.9,1583.8,0.01674]
[1744393361606,1.26363,1583.5,1583.4,0.00947119]
[1744393361801,4.47143,1583.5,1583.4,0.00947119]
[1744393362100,4.47143,1583.5,1583.4,1.19e-06]
[1744393362308,9.47143,1583.5,1583.4,1.19e-06]
[1744393362497,19.47143,1583.5,1583.4,1.19e-06]
[1744393362901,1.26442,1582.5,1582.2,3.2078]
[1744393363106,1.28124781,1582.4,1582.3,1.26458]
[1744393363302,1.28124781,1582.4,1582.3,2.7476]
[1744393363497,0.01674781,1582.4,1582.3,4.01218]
[1744393363703,0.01674781,1582.4,1582.3,9.01218]
[1744393363904,13.2078,1583.5,1582.3,7.7476]
[1744393364106,1.26383,1583.3,1583.1,1.26391]
[1744393364303,1.26379,1583.3,1583.2,0.01674781]
[1744393364801,1.26379,1583.3,1583.2,2.76434781]
[1744393365009,2.84507119,1583.4,1583.3,1.26379]
[1744393365204,0.00947119,1583.4,1583.3,1.28053781]
[1744393365503,1.27318119,1583.4,1583.3,0.01674781]
[1744393366705,0.00947119,1583.4,1583.3,1.28053781]
[1744393367706,1.27318119,1583.4,1583.3,1.28053781]
[1744393367906,0.00947119,1583.4,1583.3,1.28053781]
[1744393368907,0.00947119,1583.4,1583.3,9.48833781]
[1744393371013,0.00947119,1583.4,1583.3,1.28053781]
[1744393371511,1.27318119,1583.4,1583.3,1.28053781]
[1744393371706,4.07898119,1583.4,1583.3,1.28053781]
[1744393371909,2.81527119,1583.4,1583.3,1.28053781]
[1744393372211,4.07898119,1583.4,1583.3,1.28053781]
[1744393372612,4.07898119,1583.4,1583.3,0.01674781]
[1744393373611,2.81527119,1583.4,1583.3,1.28053781]
[1744393375408,2.81527119,1583.4,1583.3,9.48833781]
[1744393375612,1.26331,1584.0,1583.9,1.26328]
[1744393375807,1.2636,1583.6,1583.5,1.26359]
[1744393376012,1.24685219,1583.6,1583.5,1.26359]
[1744393376314,3.15872,1583.7,1583.3,1.26373]
[1744393376513,1.26374,1583.4,1583.3,1.26372]
[1744393376709,0.01674781,1583.4,1583.3,1.7418399]
[1744393377604,0.01674781,1583.4,1583.3,1.74185415]
[1744393377804,0.01674781,1583.4,1583.3,6.74185415]
[1744393378211,0.01674781,1583.4,1583.3,1.74185415]
[1744393378516,0.01674781,1583.4,1583.3,6.74185415]
[1744393379211,0.01674781,1583.4,1583.3,6.74176159]
[1744393379407,0.01674781,1583.4,1583.3,6.74174502]
[1744393379612,0.01674781,1583.4,1583.3,6.74178692]
[1744393379813,0.01674781,1583.4,1583.3,9.48698692]
[1744393380012,0.01674781,1583.4,1583.3,9.48696407]
[1744393380314,7.81e-06,1583.4,1583.3,9.48692237]
[1744393380515,7.81e-06,1583.4,1583.3,9.48683629]
[1744393380705,0.00947119,1583.7,1583.6,1.26355]
[1744393380908,1.26289,1584.5,1584.4,1.2629]
[1744393381210,2.8045,1584.6,1584.5,1.26283]
[1744393381411,6.11952,1585.1,1584.9,1.26247]
[1744393381610,1.26256,1584.9,1584.7,1.26264]
[1744393381812,3.2078,1585.0,1584.8,0.01674]
[1744393382013,1.26251,1584.9,1584.8,0.01674]
[1744393382217,1.24585,1584.8,1584.7,0.00947119]
[1744393382517,11.23027119,1585.1,1584.7,0.00947119]
[1744393382815,1.26259,1584.8,1584.7,0.00947119]
[1744393383023,4.21544,1584.9,1584.7,0.00947119]
[1744393383214,4.21544,1584.9,1584.8,1.26259]
[1744393383418,2.9529,1584.9,1584.8,1.26259]
[1744393383717,0.00947119,1585.1,1585.0,1.26243]
[1744393384508,0.00947119,1585.1,1585.0,6.26243]
[1744393384711,0.00947119,1585.1,1585.0,4.05343]
[1744393384914,0.00947119,1585.1,1585.0,1.26243]
[1744393385117,2.90557119,1585.1,1585.0,1.26243]
[1744393386310,7.37579119,1585.1,1584.9,1.26246]
[1744393386514,4.47025,1585.0,1584.9,1.26251]
[1744393386815,6.1039,1585.0,1584.9,1.26251]
[1744393387019,7.36636,1585.0,1584.8,1.26252]
[1744393387219,7.36636,1585.0,1584.7,0.00947119]
[1744393387419,1.26251,1584.9,1584.7,0.00947119]
[1744393387622,2.9379,1584.8,1584.7,1.27214119]
[1744393387819,2.9379,1584.8,1584.7,0.00947119]
[1744393388113,9.20049,1584.8,1584.7,0.00947119]
[1744393388315,12.40829,1584.8,1584.7,0.00947119]
[1744393388516,3.15668,1584.7,1584.0,3.2078]
[1744393388718,1.26312,1584.2,1584.0,1.26316]
[1744393388915,2.9379,1584.1,1583.6,6.36651]
[1744393389115,0.01674781,1583.9,1583.8,1.26333]
[1744393389314,2.95464781,1583.9,1583.8,1.26333]
[1744393391320,0.01674781,1583.9,1583.8,1.26333]
[1744393391616,0.01674781,1583.9,1583.8,7.35233]
[1744393391823,7.81e-06,1583.9,1583.8,7.35233]
[1744393392017,0.00947119,1584.0,1583.9,1.26331]
[1744393392409,0.00947119,1584.0,1583.9,9.14451]
[1744393392627,2.547,1584.7,1583.9,14.1974]
[1744393392814,2.8934,1584.5,1584.4,1.26291]
[1744393393320,2.8934,1584.5,1584.4,4.48745]
[1744393393516,2.4913,1584.9,1584.8,1.26259]
[1744393393717,1.27197119,1585.0,1584.9,1.26251]
[1744393394123,0.00947119,1585.0,1584.9,1.27925]
[1744393394724,4.25520119,1585.0,1584.9,1.27925]
[1744393395727,4.25520119,1585.0,1584.9,0.01674]
[1744393396125,4.25520119,1585.0,1584.9,1.27925]
[1744393396321,9.25520119,1585.0,1584.9,0.01674]
[1744393396529,3.15628,1584.9,1584.0,3.2078]
[1744393396826,1.26307,1584.2,1584.1,1.26315]
[1744393397029,1.26315,1584.1,1584.0,1.26316]
[1744393397331,3.12444781,1584.1,1584.0,1.26316]
[1744393397723,3.12444781,1584.1,1583.9,1.27273119]
[1744393397928,1.26323,1584.0,1583.9,1.27273119]
[1744393398128,1.26323,1584.0,1583.9,9.59088422]
[1744393398330,1.27997781,1584.0,1583.9,9.59088422]
[1744393399430,4.48777781,1584.0,1583.9,9.59088422]
[1744393399633,0.01674781,1584.0,1583.9,10.85419422]
[1744393400930,3.16214781,1584.0,1583.9,10.85419422]
[1744393401633,0.01674781,1584.0,1583.9,10.85419422]
[1744393401829,0.01674781,1584.0,1583.9,13.92119422]
[1744393402021,0.01674781,1584.0,1583.9,4.33978119]